bitfinex/quotes_ETHUSD_20250529
["timestamp","ask_amount","ask_price","bid_price","bid_amount"]
[1748488102476,0.30136501,2754.9,2754.8,4.35605597]
[1748488102805,0.30136501,2754.9,2754.8,12.35605597]
[1748488103105,7.827,2755.6,2755.5,3.62910542]
[1748488103264,0.30136501,2755.6,2755.1,1.75643257]
[1748488103466,0.30136501,2755.6,2755.5,3.62910542]
[1748488104598,0.30136501,2755.6,2755.2,3.62950058]
[1748488104903,0.30136501,2755.6,2755.5,3.62910542]
[1748488105402,0.30136501,2755.6,2755.5,4.35495121]
[1748488105706,0.30136501,2755.6,2755.5,12.68445121]
[1748488105861,0.30136501,2755.6,2755.5,12.35495121]
[1748488106387,0.30136501,2755.6,2755.5,3.62910542]
[1748488109095,1.135,2756.1,2755.8,3.62864094]
[1748488109280,1.135,2756.1,2755.9,3.62854641]
[1748488109823,1.135,2756.1,2754.6,0.3295]
[1748488109824,0.55,2755.9,2754.6,0.3295]
[1748488110101,4.178592,2755.9,2755.2,3.62944948]
[1748488110261,4.178592,2755.9,2755.3,3.62932191]
[1748488110262,0.55,2755.9,2755.3,3.62932191]
[1748488110864,0.55,2755.9,2754.8,11.62993786]
[1748488111127,0.8155,2756.0,2754.6,0.3295]
[1748488111128,0.8155,2756.0,2755.4,1.75643257]
[1748488111415,1.9515,2756.0,2755.9,3.62857868]
[1748488112993,0.96906,2960.0,2755.8,3.62870991]
[1748488112994,0.7602,2756.4,2755.8,3.62870991]
[1748488113301,0.7602,2756.4,2756.1,3.62831329]
[1748488113606,1.136,2756.3,2755.4,10.08593257]
[1748488113779,1.72502,2756.3,2755.9,3.62850525]
[1748488113995,1.72502,2756.3,2755.8,3.62863794]
[1748488114509,1.72502,2756.3,2755.7,3.62879775]
[1748488114710,1.72502,2756.3,2755.5,3.62907639]
[1748488114711,0.7722,2756.9,2756.0,5.26929771]
[1748488115030,0.7722,2756.9,2756.5,3.62774761]
[1748488115307,0.7722,2756.9,2756.6,3.62763154]
[1748488115512,0.7722,2756.9,2756.3,1.75643257]
[1748488115513,0.7722,2756.9,2756.7,3.62747517]
[1748488115872,0.7722,2756.9,2756.8,3.62739408]
[1748488116231,0.7722,2756.9,2756.3,1.75643257]
[1748488116370,0.7722,2756.9,2756.5,3.62766909]
[1748488116710,0.7722,2756.9,2756.3,1.75643257]
[1748488116863,0.7722,2756.9,2755.8,2.08593257]
[1748488117214,0.55,2756.6,2755.4,0.3295]
[1748488117410,4.544,2756.5,2755.4,0.3295]
[1748488117594,3.994,2756.5,2755.1,1.75643257]
[1748488117813,3.994,2756.5,2754.9,0.3295]
[1748488117814,3.62880018,2755.8,2754.9,0.3295]
[1748488118024,3.62880018,2755.8,2753.8,1.134]
[1748488118025,4.40230596,2755.5,2754.5,0.3295]
[1748488118200,3.6293381,2755.4,2754.8,3.62999636]
[1748488118521,1.134,2755.4,2754.5,0.3295]
[1748488118724,1.134,2755.4,2755.0,3.6296856]
[1748488118937,1.134,2755.4,2755.2,3.62949027]
[1748488119147,1.134,2755.7,2754.9,1.75643257]
[1748488119287,1.134,2755.7,2755.4,3.62910838]
[1748488119489,1.134,2755.7,2755.5,3.62904122]
[1748488119908,1.134,2755.7,2755.3,3.62928227]
[1748488120127,1.134,2755.7,2754.7,3.994]
[1748488120128,1.32472,2755.7,2755.2,3.62939102]
[1748488120285,1.32472,2755.7,2754.6,0.57163977]
[1748488120286,3.62919283,2755.5,2754.8,3.62993015]
[1748488120487,4.12433967,2755.6,2754.8,3.62997526]
[1748488120488,3.62897372,2755.6,2754.8,3.62997526]
[1748488120742,3.6291225,2755.5,2754.3,1.75643257]
[1748488121033,3.62946722,2755.3,2754.6,3.63020213]
[1748488121229,3.62925538,2755.4,2753.9,0.36312693]
[1748488121230,0.55,2755.4,2753.9,3.99425135]
[1748488121451,0.8064,2755.1,2754.0,0.39942514]
[1748488121589,0.8064,2755.1,2754.2,3.63070381]
[1748488121590,3.63001441,2754.9,2754.2,3.63070381]
[1748488121787,1.135,2754.8,2754.2,0.36307038]
[1748488122045,1.135,2754.8,2754.1,3.63095021]
[1748488122046,0.8064,2754.7,2753.2,0.18914972]
[1748488122208,0.8064,2754.7,2753.4,3.63181308]
[1748488122209,0.55,2754.5,2753.4,3.63181308]
[1748488122532,0.55,2754.5,2753.0,0.514]
[1748488122533,0.8064,2754.2,2753.0,1.75643257]
[1748488122699,1.135,2754.7,2754.1,3.63085777]
[1748488122897,1.135,2754.7,2754.2,3.63072919]
[1748488123098,1.135,2754.7,2753.7,1.75643257]
[1748488123317,1.135,2754.7,2753.9,3.63116629]
[1748488123649,1.135,2754.7,2753.7,1.75643257]
[1748488123650,1.9414,2755.0,2754.4,3.63051037]
[1748488123799,1.9414,2755.0,2754.0,0.36311663]
[1748488123800,1.9414,2755.0,2754.2,3.63080653]
[1748488123988,3.62998131,2754.9,2754.3,3.63067499]
[1748488124183,3.63011714,2754.8,2754.1,3.63086865]
[1748488124415,4.17994265,2754.9,2754.2,3.63072095]
[1748488124728,0.55,2754.4,2753.3,8.0]
[1748488124930,3.63025057,2754.7,2754.0,3.63098895]
[1748488125113,3.63029272,2754.6,2754.0,3.63098895]
[1748488125424,3.63024861,2754.7,2754.0,3.63103216]
[1748488125924,4.24221152,2754.8,2754.1,0.02554008]
[1748488126099,5.57118307,2755.0,2754.3,3.63058168]
[1748488126100,9.59024644,2755.0,2754.3,3.63058168]
[1748488126299,5.9604,2755.0,2754.2,3.63081113]
[1748488126500,3.63013437,2754.8,2754.4,0.0255373]
[1748488126700,5.9604,2755.0,2754.4,0.0255373]
[1748488126701,4.3974873,2754.7,2754.4,0.0255373]
[1748488126922,4.39747694,2754.7,2754.4,0.0255373]
[1748488127127,0.7672,2754.7,2754.4,0.0255373]
[1748488127431,1.135,2754.6,2754.4,0.0255373]
[1748488127902,0.7672,2754.7,2754.4,0.0255373]
[1748488128293,0.7672,2755.4,2754.4,0.39115023]
[1748488128520,1.135,2755.3,2754.4,0.0255373]
[1748488128829,3.62975327,2755.1,2754.5,0.02553637]
[1748488129046,1.135,2755.3,2754.5,0.02553637]
[1748488129231,3.62990371,2754.9,2754.5,0.02553637]
[1748488129591,3.62964026,2755.1,2754.5,0.02553637]
[1748488129592,3.63029114,2754.6,2754.5,0.02553637]
[1748488129817,3.62976406,2755.0,2754.5,0.02553637]
[1748488129818,3.63017502,2754.7,2754.5,0.02553637]
[1748488130638,1.338,2754.6,2754.5,0.02553637]
[1748488130804,4.41829114,2754.6,2754.5,0.02553637]
[1748488131555,3.6301609,2754.7,2753.0,8.0]
[1748488131556,3.63143191,2753.8,2753.2,3.63209865]
[1748488131703,1.135,2753.9,2753.4,3.63186055]
[1748488131905,1.135,2753.9,2753.5,3.63174068]
[1748488132110,1.135,2753.9,2753.5,3.63164028]
[1748488132510,1.135,2753.9,2753.6,3.63159762]
[1748488132718,3.63083168,2754.2,2753.6,3.63159762]
[1748488132934,1.135,2754.1,2753.6,3.63159762]
[1748488133339,1.135,2754.1,2753.5,3.63172353]
[1748488133545,0.788,2754.3,2753.6,3.63152312]
[1748488133724,1.923,2754.3,2753.6,0.39947092]
[1748488133925,0.788,2754.3,2753.6,0.39947092]
[1748488134124,0.788,2754.3,2753.6,4.03100484]
[1748488134351,0.788,2754.3,2754.0,3.63104736]
[1748488134815,0.788,2754.3,2754.1,3.63088956]
[1748488135016,0.788,2754.3,2753.6,0.42507092]
[1748488135211,0.788,2754.3,2754.2,0.0238858]
[1748488137028,1.135,2754.4,2754.2,0.0238858]
[1748488137553,1.135,2754.5,2754.2,0.0238858]
[1748488137909,0.7936,2754.6,2754.2,3.65462508]
[1748488138259,0.7936,2754.6,2754.3,3.65448438]
[1748488138260,1.135,2754.6,2754.3,3.65448438]
[1748488138557,1.135,2754.6,2754.3,0.02388493]
[1748488138728,1.135,2754.6,2754.4,3.65436363]
[1748488139450,1.135,2754.6,2754.4,0.02388406]
[1748488140522,4.76535914,2754.6,2754.4,0.02388406]
[1748488140723,0.47653591,2754.5,2754.4,0.02388406]
[1748488141421,0.4747204,2754.5,2754.4,0.02388406]
[1748488142239,1.135,2754.7,2754.4,0.02388406]
[1748488143637,4.76517351,2754.7,2754.4,0.02388406]
[1748488143961,3.63030016,2754.6,2754.4,0.02388406]
[1748488144168,4.76521748,2754.7,2754.4,0.02388406]
[1748488144460,2.09058175,2754.7,2754.4,0.02388406]
[1748488144664,2.09058175,2754.7,2754.4,3.65433962]
[1748488144853,1.135,2754.7,2754.5,3.63033371]
[1748488145066,1.135,2754.7,2754.6,3.63029114]
[1748488145648,1.135,2754.7,2754.4,3.65440985]
[1748488145848,1.135,2754.7,2754.5,3.63042294]
[1748488146542,1.135,2754.7,2754.4,3.65437715]
[1748488146765,1.135,2754.7,2754.5,3.6304052]
[1748488147341,1.135,2754.7,2754.4,0.02388406]
[1748488147537,0.98192,2755.2,2754.4,0.38934068]
[1748488147739,1.135,2755.6,2755.5,3.62910542]
[1748488147938,1.135,2755.6,2754.6,3.63029114]
[1748488147939,1.135,2755.6,2755.4,3.62921668]
[1748488148140,1.135,2755.6,2755.2,3.62950058]
[1748488148373,0.7917,2756.0,2755.5,3.62910542]
[1748488148572,3.6283687,2756.1,2755.8,3.62863412]
[1748488148573,1.135,2756.1,2755.8,3.62863412]
[1748488148742,1.135,2756.1,2755.7,3.62882335]
[1748488148943,1.135,2756.1,2755.3,3.62936885]
[1748488149159,1.135,2756.1,2755.9,3.62845213]
[1748488149569,0.20252542,2756.2,2756.1,3.62831537]
[1748488150246,0.20252542,2756.2,2756.1,11.62831537]
[1748488150446,0.20252542,2756.2,2755.8,0.0256]
[1748488150777,0.20252542,2756.2,2756.1,3.62831537]
[1748488152054,0.20252542,2756.2,2755.4,0.0256]
[1748488152379,0.62237796,2756.2,2755.1,0.0256]
[1748488152579,0.62237796,2756.2,2755.5,3.62897821]
[1748488152787,0.62237796,2756.2,2755.7,3.62875781]
[1748488152999,0.62237796,2756.2,2755.1,0.0256]
[1748488153000,1.135,2756.1,2755.1,0.0256]
[1748488153137,1.135,2756.1,2755.9,3.62850318]
[1748488153479,1.135,2756.1,2755.4,3.62919569]
[1748488153480,0.20252542,2756.2,2756.0,3.62836076]
[1748488153645,1.33752542,2756.2,2756.1,3.62831537]
[1748488154103,0.20252542,2756.2,2756.1,3.62831537]
[1748488154387,0.20252542,2756.2,2756.1,3.6521847]
[1748488155171,0.20252542,2756.2,2756.1,3.62831537]
[1748488155391,0.20252542,2756.2,2756.1,4.38042089]
[1748488155588,0.20252542,2756.2,2756.1,4.35655156]
[1748488155861,0.17865604,2756.2,2756.1,3.62831537]
[1748488163621,0.95945604,2756.2,2755.2,0.54117288]
[1748488163794,3.62844702,2756.0,2755.4,3.62918151]
[1748488164141,0.95945604,2756.2,2755.1,0.0256]
[1748488164279,1.135,2756.0,2755.8,3.62862747]
[1748488164475,0.95945604,2756.2,2755.8,3.62862747]
[1748488164802,0.95945604,2756.2,2755.4,8.0]
[1748488164803,2.09445604,2756.2,2755.4,8.0]
[1748488164986,2.09445604,2756.2,2755.4,8.53858014]
[1748488165191,2.09445604,2756.2,2755.9,3.62854614]
[1748488165591,2.09445604,2756.2,2755.1,0.0256]
[1748488165791,0.2094456,2756.1,2755.6,3.62888344]
[1748488166129,0.17865604,2756.2,2755.3,3.62936885]
[1748488166424,0.17865604,2756.2,2756.1,3.62831537]
[1748488166583,0.17865604,2756.2,2755.3,3.62936885]
[1748488166783,0.17865604,2756.2,2755.8,3.62863368]
[1748488167178,0.17865604,2756.2,2755.8,3.62869813]
[1748488167385,0.17865604,2756.2,2755.2,0.54170026]
[1748488167386,3.62847646,2756.0,2755.2,0.54170026]
[1748488167585,0.8146,2756.0,2755.7,3.62884154]
[1748488167927,0.8146,2756.0,2755.8,3.62863762]
[1748488168244,0.8146,2756.0,2755.4,3.62923713]
[1748488168723,0.8146,2756.0,2754.6,3.63021168]
[1748488168724,1.67606542,2756.0,2754.7,0.0256]
[1748488169021,1.67606542,2756.0,2754.5,3.63036355]
[1748488169022,3.62902754,2755.6,2754.5,3.63036355]
[1748488169231,0.8146,2755.9,2754.9,3.62988425]
[1748488169232,9.93465631,2755.5,2754.9,3.62988425]
[1748488169434,9.57175356,2755.5,2755.0,3.62975156]
[1748488169607,5.9426,2755.5,2755.0,3.62975156]
[1748488170496,5.9426,2755.5,2755.1,3.62961936]
[1748488170845,5.9426,2755.5,2755.2,3.62948806]
[1748488171153,0.8146,2755.5,2755.4,3.62923713]
[1748488171296,1.9496,2755.5,2755.3,3.6293321]
[1748488171495,1.316,2755.4,2754.0,0.0256]
[1748488171755,3.63011894,2754.8,2753.7,3.63147764]
[1748488171962,4.39586159,2755.0,2753.8,1.75369927]
[1748488171963,0.766,2755.0,2753.8,1.75369927]
[1748488172114,0.766,2755.0,2754.0,11.63108206]
[1748488172312,1.901,2755.0,2754.8,3.63001093]
[1748488172551,1.901,2755.0,2754.9,3.62989582]
[1748488172552,0.766,2755.0,2754.9,3.62989582]
[1748488173479,0.766,2755.5,2754.9,3.62989582]
[1748488173650,1.135,2755.1,2755.0,3.62976406]
[1748488174019,1.135,2755.1,2754.8,3.62999002]
[1748488174230,1.135,2755.1,2755.0,3.62976406]
[1748488174583,1.135,2755.1,2754.4,3.63055474]
[1748488174783,1.135,2755.1,2754.5,0.5384254]
[1748488175005,1.135,2755.2,2754.5,0.5384254]
[1748488175280,1.135,2755.2,2754.9,3.62985255]
[1748488175443,1.135,2755.2,2754.5,4.1687224]
[1748488175786,1.135,2755.2,2754.5,0.5384254]
[1748488175967,1.135,2755.2,2755.0,3.62976093]
[1748488176167,1.135,2755.2,2754.6,0.85384254]
[1748488176389,1.135,2755.2,2754.9,3.62978255]
[1748488177475,1.135,2755.2,2754.8,3.62998226]
[1748488178011,1.135,2755.2,2754.8,3.62994259]
[1748488178313,1.135,2755.2,2753.6,0.0256]
[1748488178314,0.55,2755.0,2753.6,0.0256]
[1748488178597,0.55,2755.0,2754.2,3.63079897]
[1748488178598,3.6302253,2754.7,2754.2,3.63079897]
[1748488178807,3.993,2754.9,2753.7,3.63147764]
[1748488178947,3.994,2754.8,2754.5,3.63030866]
[1748488179308,3.994,2754.8,2753.6,8.0256]
[1748488179309,3.994,2754.8,2754.6,3.63027668]
[1748488179600,0.8273,2754.4,2753.4,1.75369927]
[1748488179800,0.8273,2754.4,2754.3,3.63068656]
[1748488180305,3.994,2754.6,2754.4,3.63044258]
[1748488180497,1.8843,2754.7,2754.4,3.63044258]
[1748488180498,0.7503,2754.7,2754.4,3.63044258]
[1748488180646,4.7443,2754.7,2754.4,3.63044258]
[1748488181208,4.7443,2754.7,2754.3,3.63061152]
[1748488181368,4.7443,2754.7,2754.2,3.63077451]
[1748488181889,0.7503,2754.7,2754.2,3.63077451]
[1748488182071,0.7503,2754.7,2754.3,3.63060375]
[1748488182472,0.7503,2754.7,2754.4,3.63051787]
[1748488182784,0.7503,2754.7,2754.3,3.6306786]
[1748488182970,0.7503,2754.7,2754.4,3.63048176]
[1748488184328,0.7503,2754.7,2753.9,3.65678668]
[1748488184593,0.7503,2754.7,2754.4,3.63044142]
[1748488184757,0.7503,2754.7,2754.5,3.63034243]
[1748488184960,0.7503,2754.7,2754.0,3.99673341]
[1748488184961,3.994,2754.9,2754.0,0.36567867]
[1748488185179,3.994,2754.9,2754.6,3.63027793]
[1748488185776,3.994,2754.9,2754.4,3.6304747]
[1748488186293,3.994,2754.9,2754.5,3.63041654]
[1748488188086,4.40364687,2755.0,2754.5,3.63041654]
[1748488188248,8.39764687,2755.0,2754.5,3.63041654]
[1748488188865,8.39764687,2755.0,2754.4,3.63051318]
[1748488189459,3.994,2754.9,2754.4,3.63043216]
[1748488189999,3.994,2754.9,2754.5,3.63041062]
[1748488190198,4.7678,2755.0,2754.5,3.63041062]
[1748488190585,4.7678,2755.0,2753.9,1.77929927]
[1748488190586,3.62999102,2754.9,2753.9,1.77929927]
[1748488190790,4.7678,2755.0,2754.0,0.57732993]
[1748488191107,3.994,2754.9,2754.6,3.63021151]
[1748488191263,3.994,2754.9,2754.5,3.63036478]
[1748488191667,0.7738,2755.0,2754.6,3.6302663]
[1748488191668,4.7678,2755.0,2754.6,3.6302663]
[1748488192286,8.39759707,2755.0,2754.4,3.63044682]
[1748488192785,3.62996814,2754.9,2754.1,3.63095021]
[1748488193018,0.8294,2754.8,2753.5,0.0256]
[1748488193312,0.55,2754.9,2752.8,0.35724385]
[1748488193313,0.8294,2754.1,2753.2,3.63213714]
[1748488193528,0.8294,2754.5,2753.6,1.75369927]
[1748488193672,0.8294,2754.5,2753.9,3.63121391]
[1748488194075,0.8294,2754.5,2754.4,3.63055474]
[1748488194615,0.8294,2754.5,2754.1,3.6308818]
[1748488194816,0.8294,2754.5,2754.2,3.63081244]
[1748488195317,0.8294,2754.5,2754.3,3.63068472]
[1748488195612,0.8294,2754.5,2754.2,3.63075835]
[1748488196101,0.8294,2754.5,2753.8,3.63134577]
[1748488196302,0.8294,2754.5,2754.2,3.6307906]
[1748488196508,0.8294,2754.5,2754.4,3.63055474]
[1748488197144,3.994,2754.8,2754.4,3.63055474]
[1748488198234,3.994,2754.8,2754.3,3.63062277]
[1748488198838,3.993,2754.8,2754.3,3.63062277]
[1748488199546,3.993,2754.8,2753.9,0.36569458]
[1748488199715,7.62312488,2754.8,2754.2,3.63076592]
[1748488199914,5.31090164,2754.8,2754.1,3.63085711]
[1748488200118,5.31090164,2754.8,2754.3,3.63065368]
[1748488200352,4.76396822,2754.9,2753.9,0.36569458]
[1748488200353,3.993,2754.7,2754.4,3.6305089]
[1748488200555,3.993,2754.7,2753.9,0.36569458]
[1748488201131,3.993,2754.7,2754.3,3.63059669]
[1748488201334,3.993,2754.7,2754.2,3.6307995]
[1748488201533,3.993,2754.7,2753.9,0.36569458]
[1748488201781,1.134,2754.9,2754.6,3.63027847]
[1748488201987,3.993,2754.8,2754.6,3.63027847]
[1748488202186,8.21494663,2754.8,2753.9,0.36569458]
[1748488202328,4.58491,2754.8,2754.1,3.63092505]
[1748488202526,8.21502547,2754.8,2753.7,0.0256]
[1748488202727,3.63018003,2754.7,2754.1,3.63087403]
[1748488202929,4.38889697,2754.6,2753.8,3.63129469]
[1748488203168,4.38889697,2754.6,2753.7,3.63138007]
[1748488203169,1.6559807,2754.6,2753.7,3.63138007]
[1748488203369,1.6559807,2754.6,2753.3,0.56674364]
[1748488203370,3.63076796,2754.3,2753.8,3.63131984]
[1748488203579,3.993,2754.3,2753.3,0.0256]
[1748488203755,3.993,2754.3,2753.8,3.63125797]
[1748488204084,3.993,2754.3,2753.3,3.65756252]
[1748488204085,3.993,2754.3,2754.1,3.63084041]
[1748488204286,1.6559807,2754.6,2753.3,0.0256]
[1748488204287,3.993,2754.4,2753.3,0.0256]
[1748488204582,1.134,2754.5,2754.2,3.63081838]
[1748488204781,1.134,2754.5,2754.4,3.63055474]
[1748488206084,0.7762,2754.9,2754.4,0.72612338]
[1748488206549,0.7762,2754.9,2754.6,3.63021532]
[1748488206749,0.7762,2754.9,2754.6,3.63021041]
[1748488206956,0.7762,2754.9,2754.7,3.63013834]
[1748488207388,0.7762,2754.9,2754.5,3.6303769]
[1748488207559,0.7762,2754.9,2754.0,1.75369927]
[1748488207885,0.7762,2754.9,2754.7,3.6301382]
[1748488208388,0.7762,2754.9,2754.7,3.63007749]
[1748488208587,0.8329,2755.6,2754.8,1.75369927]
[1748488208896,1.133,2755.8,2755.7,3.62884203]
[1748488209698,0.17865604,2756.2,2756.1,3.62831537]
[1748488217492,0.17865604,2756.2,2756.1,11.65391537]
[1748488217676,0.17865604,2756.2,2756.1,1.70360605]
[1748488217883,0.17865604,2756.2,2756.1,3.62831537]
[1748488219717,0.17865604,2756.2,2756.1,11.62831537]
[1748488220882,0.8163,2757.1,2756.9,3.62722243]
[1748488221191,0.8163,2757.1,2756.9,3.6271804]
[1748488221516,0.8163,2757.1,2757.0,3.62713093]
[1748488221716,1.132,2757.4,2757.1,3.62690993]
[1748488221717,1.9209,2757.4,2757.1,3.62690993]
[1748488221878,2.11299,2757.4,2757.3,3.6267363]
[1748488222080,1.9209,2757.4,2757.2,3.62685351]
[1748488222279,1.9209,2757.4,2757.3,3.6267363]
[1748488222492,1.9209,2757.4,2757.2,3.62683473]
[1748488222818,0.7889,2757.4,2757.0,3.62700123]
[1748488223020,0.7889,2757.4,2756.8,9.75369927]
[1748488223536,1.26659,2757.4,2756.3,0.0256]
[1748488223691,1.26659,2757.4,2756.6,3.62752694]
[1748488223692,4.17683132,2757.3,2756.6,3.62752694]
[1748488223888,4.17683132,2757.3,2756.0,0.0256]
[1748488223889,0.55,2757.3,2756.0,0.0256]
[1748488224202,4.44955254,2757.2,2756.6,3.62753594]
[1748488224402,0.55,2757.0,2756.5,3.62768668]
[1748488224601,4.17717463,2757.0,2756.4,3.62780698]
[1748488224917,4.40802993,2756.8,2756.1,3.62830204]
[1748488225247,0.44080299,2756.7,2755.9,3.62854582]
[1748488225390,4.40810963,2756.8,2756.0,3.62842675]
[1748488225690,3.62766869,2756.6,2755.9,3.62855134]
[1748488225893,3.988,2756.6,2755.1,3.62953899]
[1748488226135,3.988,2756.6,2755.9,3.6285766]
[1748488226136,0.7932,2756.4,2755.9,3.6285766]
[1748488226330,0.7932,2756.4,2755.4,0.0256]
[1748488226331,0.7932,2756.4,2755.6,1.75369927]
[1748488226535,0.7932,2756.4,2755.8,1.75369927]
[1748488226746,0.7932,2756.4,2755.7,1.75369927]
[1748488226899,0.7932,2756.4,2755.1,7.61751928]
[1748488226900,0.7932,2756.4,2755.0,0.0256]
[1748488227094,3.988,2756.5,2755.0,5.40897032]
[1748488227095,0.7932,2756.2,2755.0,5.40897032]
[1748488227350,0.7932,2756.2,2755.0,1.77929927]
[1748488227525,5.9122,2756.2,2755.2,1.75369927]
[1748488227699,1.3432,2756.1,2755.2,1.75369927]
[1748488227893,0.55,2756.0,2755.2,1.75369927]
[1748488228100,0.55,2756.0,2755.5,3.62908721]
[1748488228326,0.55,2756.0,2755.5,3.62910476]
[1748488228523,1.43942,2756.1,2755.0,1.75369927]
[1748488228707,0.55,2756.0,2755.5,3.62902164]
[1748488228922,0.55,2756.0,2754.7,3.987]
[1748488228923,0.55,2755.6,2754.4,1.75369927]
[1748488229120,0.7932,2755.7,2754.4,1.75369927]
[1748488229121,0.7932,2755.7,2754.8,1.75369927]
[1748488229395,0.7932,2755.7,2755.6,3.62897372]
[1748488229640,5.119,2756.1,2755.8,3.62863964]
[1748488229858,1.3432,2756.4,2756.1,3.62830932]
[1748488229859,0.7932,2756.4,2756.1,3.62830932]
[1748488230058,0.7932,2756.8,2756.0,1.75369927]
[1748488230338,0.7932,2756.8,2756.4,3.62791235]
[1748488230694,3.62758727,2756.7,2756.2,3.62818157]
[1748488230894,0.44207873,2756.6,2756.2,3.62818157]
[1748488232728,0.44207873,2756.6,2756.0,3.62843902]
[1748488232951,0.44207873,2756.6,2756.2,3.62817099]
[1748488233154,0.44207873,2756.6,2755.0,3.62976406]
[1748488233155,3.62825793,2756.2,2755.0,3.62976406]
[1748488233296,1.11552579,2756.1,2755.7,3.62876716]
[1748488233495,1.11552579,2756.1,2755.8,3.62868139]
[1748488233734,0.7527,2756.1,2755.0,0.41693641]
[1748488233893,0.7527,2756.1,2754.8,0.0256]
[1748488233894,0.7527,2756.1,2755.7,3.6288172]
[1748488234096,0.7527,2756.1,2755.6,3.62895846]
[1748488234518,4.38102309,2756.1,2755.5,3.62908445]
[1748488234736,0.7527,2756.1,2755.6,3.62896929]
[1748488234909,1.58949342,2756.1,2755.6,3.62896929]
[1748488235294,5.21781492,2756.1,2755.5,3.62906839]
[1748488235499,1.58949342,2756.1,2755.2,1.75369927]
[1748488235932,5.21788109,2756.1,2755.5,3.62907604]
[1748488236135,5.21788109,2756.1,2754.9,9.75369927]
[1748488236136,1.58949342,2756.1,2754.9,9.75369927]
[1748488236338,3.62861172,2755.9,2755.3,3.62936885]
[1748488236544,1.9384,2755.9,2754.9,1.75369927]
[1748488236700,3.62876582,2755.8,2755.2,11.62948575]
[1748488237024,5.56707167,2755.9,2754.5,4.0126]
[1748488237025,1.3702,2755.6,2754.5,0.0256]
[1748488237334,0.8202,2755.1,2754.6,3.63018966]
[1748488237534,0.8202,2755.1,2754.7,3.63014996]
[1748488237832,0.8202,2755.1,2754.4,8.0]
[1748488238040,0.8202,2755.1,2755.0,3.62976406]
[1748488238922,0.53572,2755.5,2754.7,3.63015936]
[1748488238923,0.8202,2755.4,2754.7,3.63015936]
[1748488239122,0.8202,2755.4,2755.1,3.62955082]
[1748488239647,0.8202,2755.4,2755.2,3.62942392]
[1748488239950,0.8202,2755.4,2754.9,3.62986429]
[1748488240110,0.8202,2755.4,2754.8,3.62999121]
[1748488240111,0.55,2755.3,2754.8,3.62999121]
[1748488240312,0.8286,2755.8,2754.9,0.0256]
[1748488240511,0.8286,2755.8,2755.5,3.62902408]
[1748488240757,0.8286,2755.8,2755.4,3.62919612]
[1748488240917,0.8286,2755.8,2755.2,1.75369927]
[1748488241107,0.8286,2755.8,2755.5,3.62901312]
[1748488241308,0.8286,2755.8,2755.7,3.62884203]
[1748488241656,1.13,2756.1,2755.2,1.75369927]
[1748488241981,1.13,2756.1,2755.6,3.62887528]
[1748488242112,1.76698126,2756.1,2755.7,3.62871682]
[1748488242308,1.76698126,2756.1,2755.6,3.62891996]
[1748488242651,1.76698126,2756.1,2755.7,3.62882481]
[1748488243357,1.76698126,2756.1,2755.6,3.62891255]
[1748488245341,1.76698126,2756.1,2755.8,3.6287078]
[1748488245547,1.76698126,2756.1,2755.6,3.6289371]
[1748488246270,1.76698126,2756.1,2755.4,0.02011171]
[1748488246271,5.39539843,2756.1,2755.4,0.02011171]
[1748488246568,1.38392762,2756.0,2755.4,0.02011171]
[1748488246866,1.38392762,2756.0,2755.7,3.6287186]
[1748488247055,1.13,2756.1,2755.6,3.62891087]
[1748488247257,1.13,2756.1,2755.4,3.64930447]
[1748488247566,1.13,2756.1,2755.6,3.62896978]
[1748488247880,4.75832485,2756.1,2755.6,3.62896978]
[1748488248047,4.75832485,2756.1,2755.6,3.62895872]
[1748488248245,0.95739249,2756.0,2755.6,3.62895872]
[1748488248727,0.95739249,2756.0,2755.5,3.62905391]
[1748488249172,0.95739249,2756.0,2755.6,3.628936]
[1748488249879,0.95739249,2756.0,2755.2,0.83341179]
[1748488250175,0.95739249,2756.0,2755.6,3.62890359]
[1748488250386,0.95739249,2756.0,2755.2,0.83341179]
[1748488250551,0.95739249,2756.0,2755.6,3.62888608]
[1748488251280,0.95739249,2756.0,2755.7,3.6287865]
[1748488251482,5.116,2756.1,2755.9,3.62854954]
[1748488251483,0.55,2756.1,2755.9,3.62854954]
[1748488251779,0.8286,2756.2,2756.0,3.62843208]
[1748488251780,5.9446,2756.2,2756.0,3.62843208]
[1748488252150,5.9446,2756.2,2755.2,0.83341179]
[1748488252484,5.9446,2756.2,2755.9,3.62856048]
[1748488252689,0.67277,2756.1,2755.9,3.62856048]
[1748488253040,0.8286,2756.2,2756.0,3.62844702]
[1748488253272,0.8286,2756.2,2755.9,3.62850953]
[1748488253539,0.8286,2756.2,2756.1,3.62831537]
[1748488253942,7.831,2756.4,2756.2,3.62805866]
[1748488254180,7.831,2756.4,2756.3,3.62805209]
[1748488254757,7.831,2756.4,2756.2,3.62812576]
[1748488254944,7.831,2756.4,2756.3,3.62805209]
[1748488256453,7.831,2756.4,2755.8,0.01830634]
[1748488256679,7.831,2756.4,2756.0,3.62834992]
[1748488256886,7.831,2756.4,2755.9,3.62849848]
[1748488256887,7.831,2756.4,2756.1,3.62830651]
[1748488257089,9.45773566,2756.4,2756.0,3.62838686]
[1748488257293,9.45773566,2756.4,2756.1,3.62826799]
[1748488257794,0.8028,2757.1,2756.3,3.62805209]
[1748488257950,0.55,2756.7,2756.3,3.62798243]
[1748488258147,4.535,2756.8,2755.9,5.40787795]
[1748488258363,0.55,2756.8,2756.5,3.627741]
[1748488258896,0.55,2757.0,2756.5,3.627741]
[1748488259097,0.55,2756.8,2756.5,3.627741]
[1748488259276,0.55,2756.8,2756.6,3.62765274]
[1748488259600,0.55,2756.8,2756.6,3.62765074]
[1748488259822,0.8028,2757.1,2756.3,1.75369927]
[1748488260001,0.8028,2757.1,2755.9,8.0256]
[1748488260002,0.19328,2757.0,2755.9,1.77929927]
[1748488260164,0.74328,2757.0,2756.0,8.0]
[1748488260570,0.74328,2757.0,2756.5,3.62771011]
[1748488260912,0.74328,2757.0,2756.1,3.62831537]
[1748488261070,3.985,2757.0,2756.8,3.62728565]
[1748488261270,0.8028,2757.1,2756.8,3.62728565]
[1748488261498,0.8028,2757.1,2756.9,3.62719447]